[Event "Czech Open-GM 2022"]
[Site "Pardubice"]
[Date "2022.07.25"]
[Round "4.6"]
[White "Noe, Christopher"]
[Black "Mladek, Richard"]
[Result "1-0"]
[ECO "D37"]
[WhiteElo "2505"]
[BlackElo "2330"]
[Annotator "TA"]
[PlyCount "177"]
[EventDate "2022.07.22"]
[EventType "swiss"]
[EventCountry "CZE"]
[SourceTitle "playchess.com"]
[Source "ChessBase"]
[SourceQuality "1"]
[TimeControl "40/5400+30:1800+30"]

{[%evp 13,177,7,8,9,9,9,16,4,8,-6,-2,-2,-2,0,-2,0,0,2,0,1,0,0,12,0,0,0,0,0,0,0,0,0,0,1,4,6,8,0,5,0,7,7,8,6,4,5,19,18,19,12,15,7,11,14,12,3,6,3,3,10,42,14,56,52,49,57,67,75,79,43,91,94,93,100,100,99,110,0,38,38,43,43,45,33,30,30,85,85,96,107,91,92,95,92,93,94,102,93,89,71,74,0,93,99,104,129,117,125,113,101,141,158,179,142,158,124,183,182,199,68,54,64,102,105,124,112,189,181,290,97,379,375,340,331,480,455,450,456,527,512,935,972,1132,1119,1445,1400,1344,1212,1618,1402,1277,1251,1768,1160,4990,1377,1053,799,12837,12838,12838,12839,12849,12843,12844,12843]} 1. d4 {[%emt 0:00:04]} d5 {[%emt 0:00:01]} 2. c4 {[%emt 0:00:08]} e6 {[%emt 0:00:04]} 3. Nf3 {[%emt 0:00:28]} Nf6 {[%emt 0:00:03]} 4. Nc3 {[%emt 0:00:37]} Be7 {[%emt 0:00:07]} 5. Bf4 {[%emt 0:00:21]} O-O {[%emt 0:00:17]} 6. e3 {[%emt 0:00:11]} b6 {[%emt 0:00:34]} 7. Rc1 {[%emt 0:01:04]} Bb7 {[%emt 0:01:57]} 8. cxd5 {[%emt 0:02:57] D37: Queen's Gambit Declined: 5 Bf4.} Nxd5 {[%emt 0:00:38]} 9. Nxd5 {[%emt 0:00:14]} Qxd5 {[%emt 0:00:10]} 10. a3 {[%emt 0:00:46] The position is equal.} (10. Bxc7 Bb4+ 11. Nd2 Qxa2 $15) (10. Bd3 {looks sharper.} c5 11. O-O Nc6 12. dxc5 Rad8 13. Bb1) 10... Qa5+ {[%emt 0:01:31]} 11. Qd2 {[%emt 0:09:49]} Qxd2+ {[%emt 0:01:17]} 12. Nxd2 {[%emt 0:00:28]} c5 {[%emt 0:00:41]} 13. dxc5 {[%emt 0:06:10]} Rc8 {[%emt 0:00:43] [#]} 14. Bc4 $146 {[%emt 0:34:20]} ({Predecessor:} 14. b4 bxc5 15. b5 a6 16. bxa6 Bxa6 17. Bxa6 Rxa6 18. Nc4 Nc6 19. Ke2 Na5 20. a4 {½-½ (28) Makhnev,D (2513)-Szabo,G (2531) Chess.com INT 2021}) 14... Rxc5 {[%emt 0:08:53]} 15. O-O {[%emt 0:00:58]} Nd7 {[%emt 0:05:19]} 16. Nb3 {[%emt 0:02:24]} Rcc8 {[%emt 0:02:34]} 17. Bb5 {[%emt 0:16:59]} Nf6 {[%emt 0:04:13]} 18. h3 a6 19. Be2 {[%emt 0:04:05]} Bd5 {[%emt 0:06:56]} 20. Nd2 {[%emt 0:00:14]} b5 {[%emt 0:08:06]} 21. Rfd1 {[%emt 0:08:37]} h6 22. Be5 {[%emt 0:00:05]} Nd7 {[%emt 0:07:22]} 23. Bd4 {[%emt 0:00:38]} Bf6 {[%emt 0:06:00]} 24. Bxf6 {[%emt 0:00:30]} Nxf6 {[%emt 0:00:48]} 25. Kf1 {[%emt 0:02:38]} Kf8 {[%emt 0:12:49]} 26. Bf3 {[%emt 0:00:16]} Rd8 {[%emt 0:06:24]} 27. Ke2 {[%emt 0:01:35]} Rac8 {[%emt 0:04:10]} 28. Bxd5 {[%emt 0:01:02]} Nxd5 {[%emt 0:01:56]} 29. Nb3 {[%emt 0:00:38]} Ke8 {[%emt 0:06:37]} 30. Nc5 {[%emt 0:00:52]} Rc6 {[%emt 0:01:58]} 31. Nb7 {[%emt 0:02:09][%csl LRc6,LRd8]} Rxc1 {[%emt 0:00:08]} 32. Rxc1 $11 {[%emt 0:00:07][%mdl 4096] Endgame KRN-KRN} Rb8 {[%emt 0:00:20]} 33. Na5 {[%emt 0:01:14]} Kd7 {[%emt 0:02:43]} 34. Nc6 {[%emt 0:00:43]} Rb7 {[%emt 0:00:56]} 35. Ne5+ {[%emt 0:00:28]} Kd6 {[%emt 0:02:03]} 36. f4 {[%emt 0:00:07]} f6 {[%emt 0:00:15]} 37. Rc6+ {[%emt 0:00:28]} Ke7 {[%emt 0:00:00]} 38. Nd3 {[%emt 0:01:28]} Rb6 {[%emt 0:03:00]} 39. Rc8 {[%emt 0:01:13]} Rd6 {[%emt 0:05:40]} 40. Nc5 {[%emt 0:00:49]} a5 {[%emt 0:01:22]} 41. g3 {[%emt 0:32:16]} f5 {[%emt 0:04:49]} (41... a4 $1 $14) 42. e4 $16 fxe4 {[%emt 0:01:31]} 43. Nxe4 {[%emt 0:00:00]} Rb6 {[%emt 0:05:37]} 44. Kd3 $1 {[%emt 0:00:00]} a4 {[%emt 0:02:14]} 45. Ra8 {[%emt 0:00:00]} (45. Kd4 $16) 45... Rc6 {[%emt 0:01:17]} (45... Nc7 $5 {[%cal Rc7a8]} 46. Rc8 Kd7 $14) 46. Rg8 {[%emt 0:00:00]} Kf7 {[%emt 0:01:16]} 47. Rb8 {[%emt 0:00:00]} Nc7 $1 {[%emt 0:01:23]} 48. Rc8 {[%emt 0:00:00]} Ke7 $1 {[%emt 0:00:17]} 49. Nc3 {[%emt 0:00:00]} Rd6+ {[%emt 0:01:46]} (49... Rc5 $11) 50. Kc2 $1 {[%emt 0:00:00]} Rc6 {[%emt 0:02:10] [#]} 51. Kb1 $1 {[%emt 0:00:00]} Kd7 {[%emt 0:00:49]} 52. Rg8 {[%emt 0:00:00] White is more active.} Ne8 {[%emt 0:00:01]} 53. Nxb5 {[%emt 0:00:00]} Ke7 {[%emt 0:03:54]} 54. Nc3 {[%emt 0:00:00]} Rc4 {[%emt 0:00:06]} 55. Kc2 {[%emt 0:00:00] Threatens to win with Kd3.} Rd4 {[%emt 0:00:06]} 56. Nb5 {[%emt 0:00:46]} Rc4+ {[%emt 0:00:31]} 57. Nc3 {[%emt 0:02:43]} ({White should try} 57. Kd2 $16 {[%cal Og8e8] aiming for Rxe8+!} Rc6 58. Nc3) 57... Kf7 {[%emt 0:01:39]} (57... Rd4 $1 $11) 58. Rh8 {[%emt 0:00:50] Strongly threatening Kd3.} Rc5 {[%emt 0:03:48]} 59. Kd3 {[%emt 0:00:33]} Rh5 {[%emt 0:00:11]} 60. h4 {[%emt 0:00:22]} (60. Nxa4 Rxh3 61. Nc3 Rxg3+ 62. Kc2 Rg2+ 63. Kb3 Ke7 $11) 60... Ra5 {[%emt 0:00:02]} 61. g4 {[%emt 0:00:58]} Ra8 {[%emt 0:02:24]} 62. g5 {[%emt 0:01:06]} h5 {[%emt 0:00:30]} 63. Ne4 {[%emt 0:00:30] And now Nd6+ would win.} ({Much less strong is} 63. Rxh5 Nd6 $16) 63... Rd8+ {[%emt 0:00:13]} 64. Ke3 {[%emt 0:01:16]} Rd1 {[%emt 0:00:42]} (64... Rd5 $16 65. Ke2 (65. Rxh5 Kg8 $16) 65... g6) 65. Rxh5 $18 {[%emt 0:00:46]} Rb1 {[%emt 0:00:11] [#]} 66. g6+ {[%emt 0:01:03]} (66. Rh8 $1 $18) 66... Kxg6 $14 {[%emt 0:00:02]} 67. Rg5+ {[%emt 0:00:12]} Kh6 {[%emt 0:00:09]} 68. Rg2 {[%emt 0:01:35]} Rh1 {[%emt 0:00:16]} 69. Nc5 {[%emt 0:00:30]} Rxh4 {[%emt 0:00:22]} (69... Nc7 $16 70. Ke4 (70. Nxa4 Nd5+ 71. Kf3 Rxh4 $16) 70... Rxh4) 70. Nxe6 $18 {[%emt 0:00:13]} g6 {[%emt 0:01:25]} (70... Kh7 {is a better defense.} 71. Nc5 Nf6) 71. Kd4 $2 {[%emt 0:00:17]} (71. Nf8 $18) 71... Nf6 $2 {[%emt 0:01:04][%mdl 8192] This move loses the game for Black.} (71... Ng7 $16 {was called for.} 72. Nxg7 Kxg7) 72. Kc5 {[%emt 0:00:52]} Nh5 {[%emt 0:00:43]} 73. Rf2 {[%emt 0:00:04]} Rh3 {[%emt 0:00:22]} (73... Kh7 $142 74. Kb5 Kg8 75. Kxa4 Kf7) 74. Kb4 {[%emt 0:00:13] White is clearly winning.} Re3 {[%emt 0:00:02]} 75. Nc5 {[%emt 0:00:11] Against Re4+} Kg7 {[%emt 0:03:18]} 76. Kxa4 {[%emt 0:00:06]} Kf6 {[%emt 0:00:09]} (76... Nf6 $142 77. Kb5 Re8) 77. b4 {[%emt 0:01:15][%cal Bb2b4,Bb4b5,Bb5b6][%mdl 32]} Ke7 {[%emt 0:00:01]} 78. b5 {[%emt 0:00:38]} Kd6 {[%emt 0:00:01]} 79. Na6 {[%emt 0:01:15]} Re4+ {[%emt 0:00:41]} 80. Ka5 {[%emt 0:00:03]} Nxf4 {[%emt 0:00:07]} 81. Rd2+ {[%emt 0:00:43]} Ke7 {[%emt 0:00:25]} 82. Nb4 {[%emt 0:00:07]} Ne6 {[%emt 0:00:43]} 83. b6 {[%emt 0:00:54]} Nc5 {[%emt 0:00:05]} 84. Rd5 {[%emt 0:00:51]} (84. Nc6+ $142 Kf6 85. Kb5) 84... Nb7+ {[%emt 0:01:36]} 85. Ka6 {[%emt 0:00:04]} Nd6 {[%emt 0:00:09]} 86. b7 {[%emt 0:00:58]} Nxb7 {[%emt 0:00:06]} 87. Kxb7 {[%emt 0:00:04]} Re3 {[%emt 0:00:12]} 88. a4 {[%emt 0:00:16]} Rb3 {[%emt 0:00:07]} 89. Rb5 {[%emt 0:00:05] Weighted Error Value: White=0.06 (flawless) /Black=0.06 (flawless)} 1-0

[Event "Czech Open-GM 2022"]
[Site "Pardubice"]
[Date "2022.07.25"]
[Round "4.7"]
[White "Haring, Filip"]
[Black "Dixit, Nikhil"]
[Result "0-1"]
[ECO "C02"]
[WhiteElo "2451"]
[BlackElo "2325"]
[Annotator "TA"]
[PlyCount "84"]
[EventDate "2022.07.22"]
[EventType "swiss"]
[EventCountry "CZE"]
[SourceTitle "playchess.com"]
[Source "ChessBase"]
[SourceQuality "1"]
[TimeControl "40/5400+30:1800+30"]

{[%evp 20,84,24,21,23,0,0,-4,-3,-13,0,-17,8,14,23,0,0,-18,-9,-10,-21,-6,0,-36,-16,-57,-61,-67,-50,-50,-43,-53,0,-223,-216,-210,-220,-216,-217,-218,-218,-212,-215,-219,-207,-278,-263,-354,-354,-352,-345,-514,-504,-494,-494,-709,-672,-883,-858,-1167,-1193,-1192,-1179,-1252,-1243,-1707,-1675]} 1. e4 {[%emt 0:00:03]} e6 {[%emt 0:01:02]} 2. d4 {[%emt 0:00:15]} d5 {[%emt 0:00:21]} 3. e5 {[%emt 0:00:18]} c5 {[%emt 0:00:08]} 4. c3 {[%emt 0:00:18]} Nc6 {[%emt 0:00:06]} 5. Nf3 {[%emt 0:00:25]} Bd7 {[%emt 0:00:17]} 6. Be2 {[%emt 0:02:51]} Nge7 {[%emt 0:03:46]} 7. Na3 {[%emt 0:03:22]} Nf5 {[%emt 0:02:25]} 8. O-O {[%emt 0:16:13]} cxd4 {[%emt 0:05:35]} 9. cxd4 {[%emt 0:00:25]} Qb6 {[%emt 0:01:11]} 10. Nc2 {[%emt 0:01:00]} Be7 {[%emt 0:06:18]} 11. Bd3 {[%emt 0:00:21]} a5 {[%emt 0:02:29][%cal Rf5d4] C02: French: Advance Variation.} (11... Ncxd4 $2 12. Nfxd4 Nxd4 13. Be3 $18) 12. Bxf5 {[%emt 0:06:07]} exf5 {[%emt 0:00:04] [#]} 13. g3 $146 {[%emt 0:12:34]} ({Predecessor:} 13. Bg5 Bf8 14. h4 h6 15. Be3 Be7 16. h5 Rc8 17. Nfe1 a4 18. Nd3 Na5 19. Nc5 {½-½ (66) Shirov,A (2662)-Bluebaum,M (2672) Tornelo INT 2020}) 13... a4 {[%emt 0:05:33] The position is equal.} 14. Ne3 {[%emt 0:02:27]} Qb5 {[%emt 0:01:36]} 15. h4 {[%emt 0:04:04]} Rc8 {[%emt 0:18:26]} 16. b3 {[%emt 0:16:32]} a3 {[%emt 0:07:06]} 17. Nc2 {[%emt 0:04:12]} Qa6 {[%emt 0:04:07]} 18. Bg5 {[%emt 0:02:47]} h6 {[%emt 0:08:23]} 19. Bxe7 {[%emt 0:01:09]} Nxe7 {[%emt 0:01:02]} 20. Nb4 {[%emt 0:03:21][%cal Bc2b4,Bb4d3,Bd3c5][%mdl 32]} Qg6 {[%emt 0:05:01]} 21. Nd3 {[%emt 0:09:17]} Qg4 {[%emt 0:05:19]} 22. Nc5 {[%emt 0:00:05]} f4 $1 {[%emt 0:02:40]} 23. Nh2 {[%emt 0:04:30]} Qxd1 {[%emt 0:07:17]} 24. Rfxd1 {[%emt 0:00:03]} b6 {[%emt 0:00:08]} 25. Nb7 {[%emt 0:01:53] [#] aiming for Nd6+.} Nf5 {[%emt 0:03:52]} (25... O-O $1 $15) 26. Nf3 $2 {[%emt 0:04:46] White is on the road to losing.} (26. g4 $11 Rb8 27. gxf5 Rxb7 28. Kg2) 26... fxg3 $19 {[%emt 0:01:56]} 27. fxg3 {[%emt 0:00:26]} Ke7 {[%emt 0:04:07]} ({Weaker is} 27... Rc3 28. g4 $17) 28. g4 {[%emt 0:02:11]} Ne3 {[%emt 0:01:10][%cal Bf5e3,Be3c2,Bc2b4][%mdl 32]} 29. Rd3 {[%emt 0:01:53]} Nc2 {[%emt 0:01:10]} (29... Nxg4 30. b4 $17) 30. Rb1 {[%emt 0:00:38]} Nb4 {[%emt 0:00:19]} ({Worse is} 30... Bxg4 31. Nd6 $17) 31. Rd2 {[%emt 0:00:30]} Bxg4 {[%emt 0:00:12]} 32. Nh2 {[%emt 0:00:16]} Bf5 {[%emt 0:01:04]} 33. Rf1 {[%emt 0:00:06]} Bd3 {[%emt 0:00:34]} 34. Rfd1 {[%emt 0:01:07]} Rc2 {[%emt 0:01:20]} 35. Nd6 {[%emt 0:00:25]} (35. Rxc2 $142 Bxc2 36. Ra1) 35... Rxd2 {[%emt 0:00:44] Black is clearly winning.} 36. Rxd2 {[%emt 0:00:05]} Bb1 {[%emt 0:00:06][%cal Bd3b1,Bb1a2,Ba2b3][%mdl 32]} 37. Rd1 {[%emt 0:01:30]} (37. Rf2 $142 Bxa2 38. Rxf7+ Ke6 39. Ra7) 37... Bxa2 {[%emt 0:00:27]} 38. Rc1 {[%emt 0:00:19]} Bxb3 {[%emt 0:01:13] White must now prevent ...a2.} 39. Rc7+ {[%emt 0:00:06]} Ke6 {[%emt 0:00:04]} 40. Ra7 {[%emt 0:01:04]} a2 {[%emt 0:00:27]} 41. Nf3 {[%emt 0:04:55]} Nc2 {[%emt 0:01:45]} 42. Nxf7 {[%emt 0:01:17]} Rf8 {[%emt 0:01:07] Weighted Error Value: White=0.69/Black=0.04 (flawless)} 0-1

[Event "Czech Open-GM 2022"]
[Site "Pardubice"]
[Date "2022.07.25"]
[Round "4.8"]
[White "Pantzar, Milton"]
[Black "Slovak, Kilian"]
[Result "1/2-1/2"]
[ECO "E94"]
[WhiteElo "2447"]
[BlackElo "2321"]
[Annotator "TA"]
[PlyCount "79"]
[EventDate "2022.07.22"]
[EventType "swiss"]
[EventCountry "CZE"]
[SourceTitle "playchess.com"]
[Source "ChessBase"]
[SourceQuality "1"]
[TimeControl "40/5400+30:1800+30"]

{[%evp 15,79,41,36,27,29,20,26,0,0,-7,0,0,38,36,76,0,0,0,0,0,84,76,122,76,107,101,133,125,207,195,235,199,262,137,212,177,220,206,262,241,279,275,300,289,631,482,450,127,120,-6,-13,-1239,-1193,-29983,0,0,0,0,0,0,0,0,0,0,0,0]} 1. d4 {[%emt 0:00:06]} Nf6 {[%emt 0:00:06]} 2. c4 {[%emt 0:00:09]} g6 {[%emt 0:00:05]} 3. Nc3 {[%emt 0:00:12]} Bg7 {[%emt 0:00:05]} 4. e4 {[%emt 0:00:10]} O-O {[%emt 0:00:06]} 5. Nf3 {[%emt 0:00:50]} d6 {[%emt 0:00:09]} 6. Be2 {[%emt 0:00:07]} e5 {[%emt 0:00:06]} 7. O-O {[%emt 0:00:18]} Bg4 8. d5 {[%emt 0:05:38]} a5 {[%emt 0:01:10]} 9. h3 {[%emt 0:03:13] E94: King's Indian: Classical: 6 Be2 e5 7 0-0: Various Black 7th moves.} Bd7 {[%emt 0:00:17] [#]} 10. Re1 $146 {[%emt 0:04:59][%cal Oc4c5]} ({Predecessor:} 10. c5 Na6 11. cxd6 cxd6 12. Be3 b5 13. Nd2 Nc7 14. a4 Qb8 15. axb5 Nxb5 16. Nxb5 Bxb5 17. Bxb5 Qxb5 {1-0 (44) Lenderman,A (2624)-Jacobson,B (2514) New York 2021}) 10... Na6 {[%emt 0:00:25]} 11. Rb1 {[%emt 0:03:10] White has an edge.} Nc5 {[%emt 0:01:29]} 12. Bf1 {[%emt 0:01:34]} Nh5 {[%emt 0:01:46]} 13. Be3 {[%emt 0:11:10]} Qe8 {[%emt 0:02:10]} 14. a3 {[%emt 0:14:26]} f5 {[%emt 0:08:03]} 15. b4 {[%emt 0:04:58]} ({Better is} 15. Bxc5 $16 {Be3 is the strong threat.} dxc5 16. d6) 15... axb4 $11 {[%emt 0:00:52]} (15... fxe4 16. bxc5 exf3 17. cxd6 cxd6 18. Ne4 $14) 16. axb4 {[%emt 0:00:14]} Na4 {[%emt 0:01:03]} 17. Nxa4 {[%emt 0:02:00]} Rxa4 {[%emt 0:08:03]} (17... Bxa4 $11 {remains equal.} 18. Qe2 (18. Qd3 fxe4 19. Qxe4 Bd7 $15) 18... Bd7) 18. c5 {[%emt 0:03:58][%cal Oc5c6] [#] Black must now prevent c6!} Ra8 {[%emt 0:15:42]} 19. b5 {[%emt 0:09:56] And now c6 would win.} fxe4 {[%emt 0:09:49]} 20. Ng5 {[%emt 0:04:21]} Bh6 {[%emt 0:09:48]} 21. b6 {[%emt 0:08:54]} cxb6 {[%emt 0:24:39]} (21... Bxg5 $16 {might work better.} 22. Bxg5 Qf7) 22. Rxb6 $18 {[%emt 0:04:36]} dxc5 {[%emt 0:05:55]} 23. Rxb7 {[%emt 0:05:09]} Qc8 {[%emt 0:04:12]} (23... Bxg5 {was necessary.} 24. Bxg5 Rb8) 24. Rb2 {[%emt 0:01:43]} (24. Qb3 $18) 24... Ra3 {[%emt 0:02:08]} (24... Bxg5 $16 25. Bxg5 Ra4) 25. h4 {[%emt 0:04:07]} (25. Nxe4 $6 Bxe3 26. Rxe3 Rxe3 27. fxe3 c4) 25... Nf6 {[%emt 0:01:25]} 26. Qc1 {[%emt 0:02:58]} Qa8 {[%emt 0:02:23]} 27. d6 {[%emt 0:01:59] Threatens to win with Bc4+.} (27. Bxc5 Rc8 $16) 27... Ng4 {[%emt 0:00:59]} 28. Bxc5 {[%emt 0:01:38]} Ra5 {[%emt 0:01:01]} 29. Bb6 {[%emt 0:00:35]} e3 $2 {[%emt 0:00:29]} (29... Ra4 30. Rc2 Qb8) 30. Qc7 {[%emt 0:01:36]} Bxg5 {[%emt 0:00:26]} (30... exf2+ $2 31. Rxf2 Nxf2 32. Qxd7 Bxg5 33. hxg5) 31. hxg5 {[%emt 0:00:28]} (31. Qxd7 $18 Ra1 32. Qe6+ (32. hxg5 Rxe1 33. Qxg4 Rxf1+ 34. Kh2 Kh8 $17) 32... Kh8 33. Rxa1 (33. hxg5 $2 Rxe1 34. Qxg4 Rxf1+ 35. Kh2 exf2 $19) 33... Qxa1 {[#]} 34. Qxg4 $1 (34. Qa2 exf2+ 35. Rxf2 Qxa2 $14) 34... Qxb2 35. Qxg5 Qxf2+ 36. Kh2) 31... Ra1 $16 {[%emt 0:00:32]} (31... exf2+ $2 32. Rxf2 Rxf2 33. Bxf2 $18) 32. Qxd7 {[%emt 0:00:44]} Rxe1 $11 {[%emt 0:00:35]} 33. Qe6+ $2 {[%emt 0:00:27][%mdl 8192]} (33. Qxg4 $11 Rxf1+ 34. Kh2) 33... Kh8 $19 {[%emt 0:00:15]} 34. Ra2 {[%emt 0:00:18]} e2 $2 {[%emt 0:00:45]} (34... Qe4 {mates} 35. f3 e2 36. Rxe2 Qxe2 37. Qxg4 Rxf1+ 38. Kh2 Qe1 39. Bf2 Qxf2 40. Qe4 Re1 41. Qxe1 Qxe1 42. d7 Rd8 43. g3 Rxd7 44. f4 Rd2+ 45. Kh3 Qh1+ 46. Kg4 Qh5#) 35. Rxe2 $11 {[%emt 0:00:17] The board is on fire. The position is equal.} Rxf1+ {[%emt 0:00:30]} 36. Kxf1 {[%emt 0:00:02] Strongly threatening d7.} Qa1+ {[%emt 0:00:02]} 37. Re1 {[%emt 0:00:08] Active counter play!} Qa6+ {[%emt 0:00:04]} 38. Re2 {[%emt 0:00:38]} Qa1+ {[%emt 0:00:00]} 39. Re1 {[%emt 0:00:06]} Qa6+ {[%emt 0:00:01]} 40. Re2 {[%emt 0:00:08] Weighted Error Value: White=0.94/Black=0.40} 1/2-1/2

[Event "Czech Open-GM 2022"]
[Site "Pardubice"]
[Date "2022.07.25"]
[Round "4.9"]
[White "Hansch, Karsten"]
[Black "Akesson, Ralf"]
[Result "1-0"]
[ECO "B40"]
[WhiteElo "2320"]
[BlackElo "2427"]
[Annotator "TA"]
[PlyCount "71"]
[EventDate "2022.07.22"]
[EventType "swiss"]
[EventCountry "CZE"]
[SourceTitle "playchess.com"]
[Source "ChessBase"]
[SourceQuality "1"]
[TimeControl "40/5400+30:1800+30"]

{[%evp 9,71,-3,-3,2,9,20,10,16,55,45,52,43,49,47,43,46,56,44,45,13,48,29,55,-7,33,-71,-83,-109,-128,-129,-125,-114,-12,-32,0,-35,0,0,15,11,144,143,146,147,135,116,116,123,402,402,395,392,442,427,29987,29988,29988,29984,29984,29985,29984,29985,29976,29973]} 1. e4 {[%emt 0:00:03]} c5 {[%emt 0:01:35]} 2. Nf3 {[%emt 0:00:08]} e6 {[%emt 0:00:15]} 3. b3 {[%emt 0:00:04]} b6 {[%emt 0:00:58]} 4. d4 {[%emt 0:00:13]} cxd4 {[%emt 0:00:16]} 5. Nxd4 {[%emt 0:00:05]} Bb7 {[%emt 0:00:37]} 6. Nd2 {[%emt 0:00:42] B40: Sicilian: 2...e6, Unusual lines.} Nc6 {[%emt 0:04:13]} 7. Nxc6 {[%emt 0:00:55]} Bxc6 {[%emt 0:00:49]} 8. Bb2 {[%emt 0:00:19] Prevents Qf6. The position is equal.} d6 {[%emt 0:01:21]} 9. Bd3 {[%emt 0:00:53]} Nf6 {[%emt 0:00:17][%cal Bg8f6,Bf6d7,Bd7c5][%mdl 32]} 10. Qe2 {[%emt 0:00:10]} Be7 {[%emt 0:00:59]} 11. O-O-O {[%emt 0:01:00]} O-O {[%emt 0:05:03]} 12. f4 {[%emt 0:01:40] [#]} Nd7 $146 {[%emt 0:04:35]} ({Predecessor:} 12... Qc7 13. Kb1 Rfc8 14. h4 Nd7 15. Rh3 Nc5 16. h5 e5 17. fxe5 dxe5 18. Bc4 b5 {½-½ (85) Vachier Lagrave,M (2762)-Van Wely,L (2654) Dubai 2014}) 13. h4 {[%emt 0:05:03]} (13. Qg4 Bf6 $11) 13... Nc5 {[%emt 0:02:44]} 14. Nf3 {[%emt 0:01:53]} (14. Qg4 Bf6 $15) 14... Qc7 {[%emt 0:05:33]} 15. h5 {[%emt 0:04:13]} a5 {[%emt 0:07:00]} 16. Rh3 {[%emt 0:02:29]} (16. Nd4 $1 $14) 16... d5 $11 {[%emt 0:10:02]} 17. e5 {[%emt 0:08:48]} (17. exd5 $14 {stays ahead.} Qxf4+ 18. Kb1 Bxd5 19. Ne5) 17... a4 $17 {[%emt 0:02:23]} 18. f5 {[%emt 0:02:34] aiming for f6.} axb3 {[%emt 0:02:09]} 19. axb3 {[%emt 0:00:26]} exf5 {[%emt 0:10:58]} 20. Bxf5 {[%emt 0:03:16]} Ra2 {[%emt 0:08:52]} (20... Bd7 $17 21. Bxd7 Qxd7) 21. Nd4 $11 {[%emt 0:02:23]} Rfa8 {[%emt 0:05:31] Hoping for ...Bd7.} 22. Rg3 $1 {[%emt 0:02:27]} Bf8 {[%emt 0:12:49]} (22... Ne4 $6 23. Bxe4 dxe4 24. Nxc6 Qxc6 25. e6 Qxe6 26. Bxg7 $17) 23. Qe3 $36 {[%emt 0:09:52][%mdl 2048] White is pushing.} Bd7 {[%emt 0:05:35] Strongly threatening ...Qa7.} (23... g6 24. hxg6 fxg6 25. Bxg6 $1 $18 {[%mdl 512]}) 24. e6 $1 {[%emt 0:04:16]} fxe6 {[%emt 0:01:20]} (24... Rxb2 $1 $11 25. exf7+ (25. Kxb2 fxe6 26. Nxe6 Qd6 $11) (25. exd7 $2 Rba2 $19) 25... Kh8 26. Kxb2 Bxf5 27. Rxg7 (27. Nxf5 Ne4 $15) (27. Qe8 Qa7 $11) 27... Kxg7 28. Qg5+ Kxf7 29. Qxf5+ Kg7 30. h6+ (30. Ra1 $2 Rxa1 31. h6+ Kg8 $19) 30... Kh8 31. Qf6+ Kg8 32. Qg5+ Kh8 33. Qf6+ Kg8 34. Qg5+ Kh8 35. Qf6+) 25. Nxe6 $16 {[%emt 0:00:09]} Bxe6 {[%emt 0:01:24]} 26. Bxe6+ {[%emt 0:00:11]} Nxe6 {[%emt 0:00:12]} 27. Qxe6+ {[%emt 0:00:10]} Kh8 {[%emt 0:00:29] [#]} 28. Qe5 $1 {[%emt 0:02:07] Really sharp! White is much more active.} Qa7 {[%emt 0:05:34][%mdl 8192] This move loses the game for Black.} (28... Qxe5 $16 29. Bxe5 Rc8) 29. h6 $18 {[%cal Rh6g7]} Rxb2 {[%emt 0:00:52]} 30. Kxb2 {[%emt 0:02:23]} (30. Qxb2 $2 {perishes.} Ba3 31. Rgd3 Bxb2+ $19) 30... Qa2+ {[%emt 0:00:32]} (30... Qa3+ $2 31. Kc3 Qb4+ 32. Kd3 Qe4+ 33. Qxe4 dxe4+ 34. Kxe4) 31. Kc1 {[%emt 0:01:15][%cal Rh6g7,Bb2c1,Bc1d2,Bd2e3][%mdl 32]} Ba3+ {[%emt 0:00:29]} (31... Qa1+ $18 32. Qxa1 Rxa1+ 33. Kd2 Ra8 34. hxg7+ Bxg7) 32. Kd2 {[%emt 0:00:07][%csl Gg3,Gh6][%cal Re5g7] White mates.} Bb4+ {[%emt 0:00:16]} 33. Ke3 {[%emt 0:00:56][%csl Gg3,Gh6][%cal Re5g7]} Bc5+ {[%emt 0:00:44] [#]} 34. Rd4 $1 {[%emt 0:00:17][%mdl 512]} Bxd4+ {[%emt 0:00:32]} 35. Qxd4 {[%emt 0:00:04][%csl Gg3,Gh6][%cal Rd4g7]} ({Worse is} 35. Kxd4 Qa1+ 36. c3 Qd1+ 37. Rd3 Qg1+ 38. Qe3 (38. Re3 Qd1+ 39. Rd3 Qg1+ 40. Qe3 Qxg2 $11) 38... Qxg2 39. hxg7+ Qxg7+ 40. Qe5 Re8 41. Qxg7+ Kxg7 $11) 35... Re8+ {[%emt 0:00:29]} 36. Kd2 {[%emt 0:00:04] Weighted Error Value: White=0.11 (very precise) /Black=0.52} 1-0